fUSD/lending_fUSD_20250629
["ID","MTS","AMOUNT","RATE_DAILY","PERIOD"]
[368526528,1751195480913,-1217.95,0.00028767,3]
[368526529,1751195480922,-590.89,0.00028767,3]
[368526530,1751195480932,-490.0,0.00028767,3]
[368526531,1751195480942,-490.0,0.00028767,3]
[368526532,1751195480952,-528.4,0.00028767,3]
[368526533,1751195480962,-498.25,0.00028767,3]
[368526534,1751195480971,-1047.55,0.00028767,3]
[368526535,1751195480981,-932.64,0.00028767,3]
[368526536,1751195480990,-1535.93,0.00028767,3]
[368526537,1751195480999,-490.0,0.00028767,3]
[368526538,1751195481009,-1410.37,0.00028767,3]
[368526539,1751195481018,-857.63,0.00028767,3]
[368526540,1751195481027,-490.0,0.00028767,3]
[368526541,1751195481037,-314.86983444,0.00028767,3]
[368526542,1751195481046,-490.0,0.00028767,3]
[368526543,1751195481056,-764.97,0.00028767,3]
[368526544,1751195481065,-1226.51,0.00028767,3]
[368526545,1751195481074,-719.95,0.00028767,3]
[368526546,1751195481083,-979.74,0.00028767,3]
[368526547,1751195481092,-991.19,0.00028767,3]
[368526548,1751195481102,-490.0,0.00028767,3]
[368526549,1751195481111,-490.0,0.00028767,3]
[368526550,1751195481121,-892.18,0.00028767,3]
[368526551,1751195481130,-490.0,0.00028767,3]
[368526552,1751195481140,-490.0,0.00028767,3]
[368526553,1751195481151,-490.0,0.00028767,3]
[368526554,1751195481160,-523.71,0.00028767,3]
[368526555,1751195481170,-490.0,0.00028767,3]
[368526556,1751195481179,-490.0,0.00028767,3]
[368526557,1751195481188,-490.0,0.00028767,3]
[368526558,1751195481197,-207.11242447,0.00028767,3]
[368526559,1751195481207,-1618.13,0.00028767,3]
[368526560,1751195481216,-490.0,0.00028767,3]
[368526561,1751195481225,-1261.23,0.00028767,3]
[368526562,1751195481235,-662.39,0.00028767,3]
[368526563,1751195481243,-533.43,0.00028767,3]
[368526564,1751195481253,-490.0,0.00028767,3]
[368526565,1751195481262,-851.98,0.00028767,3]
[368526566,1751195481271,-3244.07,0.00028767,3]
[368526567,1751195481280,-490.0,0.00028767,3]
[368526568,1751195481289,-490.0,0.00028767,3]
[368526569,1751195481299,-490.0,0.00028767,3]
[368526570,1751195481308,-490.0,0.00028767,3]
[368526571,1751195481317,-490.0,0.00028767,3]
[368526572,1751195481330,-490.0,0.00028767,3]
[368526573,1751195481339,-650.15,0.00028767,3]
[368526574,1751195481349,-643.65,0.00028767,3]
[368526575,1751195481359,-588.08,0.00028767,3]
[368526576,1751195481368,-793.06,0.00028767,3]
[368526577,1751195481377,-1494.92,0.00028767,3]
[368526578,1751195481387,-11062.2,0.00028767,3]
[368526579,1751195481396,-650.49,0.00028767,3]
[368526580,1751195481406,-1369.42,0.00028767,3]
[368526581,1751195481415,-490.0,0.00028767,3]
[368526582,1751195481425,-490.0,0.00028767,3]
[368526583,1751195481434,-490.0,0.00028767,3]
[368526584,1751195481444,-490.0,0.00028767,3]
[368526585,1751195481454,-992.98,0.00028767,3]
[368526586,1751195481463,-2865.08,0.00028767,3]
[368526587,1751195481472,-490.0,0.00028767,3]
[368526588,1751195481482,-1255.19,0.00028767,3]
[368526589,1751195481491,-490.0,0.00028767,3]
[368526590,1751195481501,-1048.51,0.00028767,3]
[368526591,1751195481512,-895.06,0.00028767,3]
[368526592,1751195481523,-490.0,0.00028767,3]
[368526593,1751195481534,-1140.15,0.00028767,3]
[368526594,1751195481543,-1475.7,0.00028767,3]
[368526595,1751195481553,-1098.84,0.00028767,3]
[368526596,1751195481563,-689.9,0.00028767,3]
[368526597,1751195481572,-509.89,0.00028767,3]
[368526598,1751195481582,-846.61,0.00028767,3]
[368526599,1751195481592,-490.0,0.00028767,3]
[368526600,1751195481603,-800.75,0.00028767,3]
[368526601,1751195481612,-490.0,0.00028767,3]
[368526602,1751195481624,-1724.34,0.00028767,3]
[368526603,1751195481634,-839.61,0.00028767,3]
[368526604,1751195481643,-1838.21,0.00028767,3]
[368526605,1751195481652,-490.0,0.00028767,3]
[368526606,1751195481666,-490.0,0.00028767,3]
[368526607,1751195481677,-1420.15,0.00028767,3]
[368526608,1751195481686,-191.22798685,0.00028767,3]
[368526609,1751195481697,-1365.53,0.00028767,3]
[368526610,1751195481708,-511.65,0.00028767,3]
[368526611,1751195481718,-738.89,0.00028767,3]
[368526612,1751195481729,-1126.33,0.00028767,3]
[368526613,1751195481739,-490.0,0.00028767,3]
[368526614,1751195481748,-753.94,0.00028767,3]
[368526615,1751195481757,-4179.4,0.00028767,3]
[368526616,1751195481767,-490.0,0.00028767,3]
[368526617,1751195481777,-2082.18,0.00028767,3]
[368526618,1751195481787,-3115.11,0.00028767,3]
[368526619,1751195481797,-807.19,0.00028767,3]
[368526620,1751195481806,-1049.11,0.00028767,3]
[368526621,1751195481816,-740.57,0.00028767,3]
[368526622,1751195481825,-490.0,0.00028767,3]
[368526623,1751195481835,-490.0,0.00028767,3]
[368526624,1751195481844,-1044.97,0.00028767,3]
[368526625,1751195481855,-490.0,0.00028767,3]
[368526626,1751195481867,-1018.69,0.00028767,3]
[368526627,1751195481877,-1329.73,0.00028767,3]
[368526628,1751195481888,-664.26,0.00028767,3]
[368526629,1751195481897,-765.79,0.00028767,3]
[368526630,1751195481908,-1231.21,0.00028767,3]
[368526631,1751195481918,-5898.08,0.00028767,3]
[368526632,1751195481929,-1354.66,0.00028767,3]
[368526633,1751195481940,-801.57,0.00028767,3]
[368526634,1751195481950,-678.52,0.00028767,3]
[368526635,1751195481960,-490.0,0.00028767,3]
[368526636,1751195481969,-490.0,0.00028767,3]
[368526637,1751195481979,-728.11,0.00028767,3]
[368526638,1751195481989,-490.0,0.00028767,3]
[368526639,1751195481999,-490.0,0.00028767,3]
[368526640,1751195482010,-853.69,0.00028767,3]
[368526641,1751195482019,-2091.4,0.00028767,3]
[368526642,1751195482029,-1560.41,0.00028767,3]
[368526643,1751195482043,-490.0,0.00028767,3]
[368526644,1751195482054,-898.14,0.00028767,3]
[368526645,1751195482064,-490.0,0.00028767,3]
[368526646,1751195482074,-751.28,0.00028767,3]
[368526647,1751195482083,-490.0,0.00028767,3]
[368526648,1751195482094,-1923.3,0.00028767,3]
[368526649,1751195482104,-1248.49,0.00028767,3]
[368526650,1751195482114,-824.08,0.00028767,3]
[368526651,1751195482123,-836.36,0.00028767,3]
[368526652,1751195482133,-490.0,0.00028767,3]
[368526653,1751195482144,-2818.09,0.00028767,3]
[368526654,1751195482157,-2281.84,0.00028767,3]
[368526655,1751195482167,-1208.52,0.00028767,3]
[368526656,1751195482177,-1308.74,0.00028767,3]
[368526657,1751195482186,-812.38,0.00028767,3]
[368526658,1751195482196,-490.0,0.00028767,3]
[368526659,1751195482206,-965.91,0.00028767,3]
[368526660,1751195482216,-490.0,0.00028767,3]
[368526661,1751195482225,-1092.36,0.00028767,3]
[368526662,1751195482236,-2507.76,0.00028767,3]
[368526663,1751195482246,-490.0,0.00028767,3]
[368526664,1751195482256,-490.0,0.00028767,3]
[368526665,1751195482267,-1392.28,0.00028767,3]
[368526666,1751195482278,-545.7,0.00028767,3]
[368526667,1751195482288,-756.84,0.00028767,3]
[368526668,1751195482298,-973.2,0.00028767,3]
[368526669,1751195482308,-490.0,0.00028767,3]
[368526670,1751195482318,-490.0,0.00028767,3]
[368526671,1751195482331,-1668.27,0.00028767,3]
[368526672,1751195482341,-6899.51,0.00028767,3]
[368526673,1751195482351,-875.0,0.00028767,3]
[368526674,1751195482361,-686.34,0.00028767,3]
[368526675,1751195482372,-490.0,0.00028767,3]
[368526676,1751195482382,-1310.27,0.00028767,3]
[368526677,1751195482391,-550.14,0.00028767,3]
[368526678,1751195482402,-1492.54,0.00028767,3]
[368526679,1751195482412,-678.08,0.00028767,3]
[368526680,1751195482422,-598.31,0.00028767,3]
[368526681,1751195482433,-1285.64,0.00028767,3]
[368526682,1751195482443,-678.33,0.00028767,3]
[368526683,1751195482453,-1183.52,0.00028767,3]
[368526684,1751195482463,-2084.42,0.00028767,3]
[368526685,1751195482473,-2071.23,0.00028767,3]
[368526686,1751195482483,-1111.98,0.00028767,3]
[368526687,1751195482495,-2149.28,0.00028767,3]
[368526688,1751195482506,-1189.09,0.00028767,3]
[368526689,1751195482516,-1343.62,0.00028767,3]
[368526690,1751195482526,-624.68,0.00028767,3]
[368526691,1751195482536,-1713.38,0.00028767,3]
[368526692,1751195482547,-728.39,0.00028767,3]
[368526693,1751195482557,-490.0,0.00028767,3]
[368526694,1751195482567,-490.0,0.00028767,3]
[368526695,1751195482578,-490.0,0.00028767,3]
[368526696,1751195482588,-1929.28,0.00028767,3]
[368526697,1751195482599,-716.65,0.00028767,3]
[368526698,1751195482610,-490.0,0.00028767,3]
[368526699,1751195482621,-1448.19,0.00028767,3]
[368526700,1751195482632,-490.0,0.00028767,3]
[368526701,1751195482642,-950.17,0.00028767,3]
[368526702,1751195482653,-490.0,0.00028767,3]
[368526703,1751195482663,-1415.52,0.00028767,3]
[368526704,1751195482673,-4228.03,0.00028767,3]
[368526705,1751195482684,-578.07,0.00028767,3]
[368526706,1751195482694,-1294.67,0.00028767,3]
[368526707,1751195482704,-2873.11,0.00028767,3]
[368526708,1751195482713,-2568.99,0.00028767,3]
[368526709,1751195482723,-490.0,0.00028767,3]
[368526710,1751195482733,-490.0,0.00028767,3]
[368526711,1751195482743,-490.0,0.00028767,3]
[368526712,1751195482752,-490.0,0.00028767,3]
[368526713,1751195482763,-1298.15,0.00028767,3]
[368526714,1751195482773,-3934.62,0.00028767,3]
[368526715,1751195482785,-871.69,0.00028767,3]
[368526716,1751195482795,-490.0,0.00028767,3]
[368526717,1751195482805,-490.0,0.00028767,3]
[368526718,1751195482815,-1156.17,0.00028767,3]
[368526719,1751195482826,-490.0,0.00028767,3]
[368526720,1751195482835,-490.0,0.00028767,3]
[368526721,1751195482845,-490.0,0.00028767,3]
[368526722,1751195482854,-1135.44,0.00028767,3]
[368526723,1751195482864,-490.0,0.00028767,3]
[368526724,1751195482873,-490.0,0.00028767,3]
[368526725,1751195482883,-5438.07,0.00028767,3]
[368526726,1751195482893,-3395.49,0.00028767,3]
[368526727,1751195482903,-2131.93,0.00028767,3]
[368526728,1751195482913,-490.0,0.00028767,3]
[368526729,1751195482924,-595.7,0.00028767,3]
[368526730,1751195482933,-490.0,0.00028767,3]
[368526731,1751195482943,-1160.67,0.00028767,3]
[368526732,1751195482953,-1082.12,0.00028767,3]
[368526733,1751195482962,-1291.41,0.00028767,3]
[368526734,1751195482972,-3297.43,0.00028767,3]
[368526735,1751195482983,-490.0,0.00028767,3]
[368526736,1751195482994,-1219.38,0.00028767,3]
[368526737,1751195483004,-490.0,0.00028767,3]
[368526738,1751195483014,-1351.77,0.00028767,3]
[368526739,1751195483023,-1046.99,0.00028767,3]
[368526740,1751195483033,-490.0,0.00028767,3]
[368526741,1751195483043,-874.34,0.00028767,3]
[368526742,1751195483053,-490.0,0.00028767,3]
[368526743,1751195483063,-490.0,0.00028767,3]
[368526744,1751195483074,-490.0,0.00028767,3]
[368526745,1751195483085,-1084.91,0.00028767,3]
[368526746,1751195483095,-1243.77,0.00028767,3]
[368526747,1751195483106,-2069.3,0.00028767,3]
[368526748,1751195483117,-523.8,0.00028767,3]
[368526749,1751195483127,-664.94,0.00028767,3]
[368526750,1751195483137,-490.0,0.00028767,3]
[368526751,1751195483147,-1431.47,0.00028767,3]
[368526752,1751195483159,-490.0,0.00028767,3]
[368526753,1751195483169,-1230.19,0.00028767,3]
[368526754,1751195483180,-6887.93,0.00028767,3]
[368526755,1751195483190,-490.0,0.00028767,3]
[368526756,1751195483201,-1307.69,0.00028767,3]
[368526757,1751195483211,-2182.43,0.00028767,3]
[368526758,1751195483221,-836.9,0.00028767,3]
[368526759,1751195483232,-7977.88,0.00028767,3]
[368526760,1751195483242,-15438.68,0.00028767,3]
[368526761,1751195483252,-159.004353,0.00028767,3]
[368526762,1751195483262,-490.0,0.00028767,3]
[368526763,1751195483272,-1062.58,0.00028767,3]
[368526764,1751195483281,-946.94,0.00028767,3]
[368526765,1751195483291,-752.46,0.00028767,3]
[368526766,1751195483302,-1047.7,0.00028767,3]
[368526767,1751195483311,-951.95,0.00028767,3]
[368526768,1751195483321,-2249.11,0.00028767,3]
[368526769,1751195483333,-1419.39,0.00028767,3]
[368526770,1751195483343,-1046.27,0.00028767,3]
[368526771,1751195483353,-883.6,0.00028767,3]
[368526772,1751195483363,-490.0,0.00028767,3]
[368526773,1751195483373,-490.0,0.00028767,3]
[368526774,1751195483383,-1233.28,0.00028767,3]
[368526775,1751195483393,-490.0,0.00028767,3]
[368526776,1751195483403,-1053.68,0.00028767,3]
[368526777,1751195483414,-1876.95,0.00028767,3]
[368526778,1751195483424,-1437.9,0.00028767,3]
[368526779,1751195483434,-577.96,0.00028767,3]
[368526780,1751195483444,-2637.31,0.00028767,3]
[368526781,1751195483454,-858.76,0.00028767,3]
[368526782,1751195483464,-1212.63,0.00028767,3]
[368526783,1751195483474,-1172.02,0.00028767,3]
[368526784,1751195483485,-490.0,0.00028767,3]
[368526785,1751195483495,-939.2,0.00028767,3]
[368526786,1751195483505,-1487.73,0.00028767,3]
[368526787,1751195483515,-1475.83,0.00028767,3]
[368526788,1751195483526,-490.0,0.00028767,3]
[368526789,1751195483742,-513.84,0.00028767,3]
[368526790,1751195483754,-581.65,0.00028767,3]
[368526791,1751195483763,-490.0,0.00028767,3]
[368526792,1751195483773,-1624.17,0.00028767,3]
[368526793,1751195483782,-1094.1,0.00028767,3]
[368526794,1751195483792,-1150.15,0.00028767,3]
[368526795,1751195483801,-934.06,0.00028767,3]
[368526796,1751195483811,-3721.52,0.00028767,3]
[368526797,1751195483820,-840.28,0.00028767,3]
[368526798,1751195483830,-2369.11,0.00028767,3]
[368526799,1751195483839,-459.43865336,0.00028767,3]
[368526800,1751195483848,-1892.33,0.00028767,3]
[368526801,1751195483858,-3862.52,0.00028767,3]
[368526802,1751195483868,-943.0,0.00028767,3]
[368526803,1751195483878,-1500.56,0.00028767,3]
[368526804,1751195483888,-1722.76,0.00028767,3]
[368526805,1751195483897,-490.0,0.00028767,3]
[368526806,1751195483907,-1385.63,0.00028767,3]
[368526807,1751195483916,-690.18,0.00028767,3]
[368526808,1751195483926,-1738.51,0.00028767,3]
[368526809,1751195483936,-490.0,0.00028767,3]
[368526810,1751195483947,-893.12,0.00028767,3]
[368526811,1751195483957,-490.0,0.00028767,3]
[368526812,1751195483967,-490.0,0.00028767,3]
[368526813,1751195483977,-3272.52,0.00028767,3]
[368526814,1751195483987,-490.0,0.00028767,3]
[368526815,1751195483997,-490.0,0.00028767,3]
[368526816,1751195484007,-884.39,0.00028767,3]
[368526817,1751195484017,-1232.52,0.00028767,3]
[368526818,1751195484027,-490.0,0.00028767,3]
[368526819,1751195484036,-2520.33,0.00028767,3]
[368526820,1751195484046,-8290.98,0.00028767,3]
[368526821,1751195484056,-490.0,0.00028767,3]
[368526822,1751195484066,-2639.97,0.00028767,3]
[368526823,1751195484075,-1073.7,0.00028767,3]
[368526824,1751195484085,-490.0,0.00028767,3]
[368526825,1751195484095,-1075.68,0.00028767,3]
[368526826,1751195484105,-4185.34,0.00028767,3]
[368526827,1751195484114,-490.0,0.00028767,3]
[368526828,1751195484124,-490.0,0.00028767,3]
[368526829,1751195484134,-490.0,0.00028767,3]
[368526830,1751195484143,-506.8,0.00028767,3]
[368526831,1751195484154,-81101.22,0.00028767,3]
[368526832,1751195484164,-999.64,0.00028767,2]
[368526833,1751195484174,-500.0,0.00028768,5]
[368526834,1751195484184,-1000.0,0.00028768,5]
[368526835,1751195484194,-1500.0,0.00028768,5]
[368526836,1751195484203,-171.0,0.00028997,14]
[368526837,1751195484213,-171.0,0.00029,120]
[368526838,1751195484223,-600.0,0.00029,2]
[368526839,1751195484233,-1200.0,0.00029006,2]
[368526840,1751195484243,-3074.05,0.00029009,2]
[368526841,1751195484252,-2597.46,0.00029009,2]
[368526842,1751195484262,-630.65,0.00029015,2]
[368526843,1751195484272,-2000.0,0.00029016,5]
[368526844,1751195484282,-490.0,0.0002904,3]
[368526845,1751195484291,-490.0,0.0002904,3]
[368526846,1751195484302,-490.0,0.0002904,3]
[368526847,1751195484313,-490.0,0.0002904,3]
[368526848,1751195484325,-493.03634435,0.0002904,3]
[368526849,1751195484336,-636.43664181,0.0002904,3]
[368526850,1751195484347,-540.0,0.0002904,3]
[368526851,1751195484357,-998.55,0.0002904,3]
[368526852,1751195484367,-2019.21,0.0002904,3]
[368526853,1751195484376,-1258.14,0.0002904,3]
[368526854,1751195484388,-522.39,0.0002904,3]
[368526855,1751195484399,-490.0,0.0002904,3]
[368526856,1751195484410,-714.21,0.0002904,3]
[368526857,1751195484420,-3605.69,0.0002904,3]
[368526858,1751195484430,-5060.72,0.0002904,3]
[368526859,1751195484441,-1095.63,0.0002904,3]
[368526860,1751195484451,-1236.33,0.0002904,3]
[368526861,1751195484461,-10700.98,0.0002904,3]
[368526862,1751195484471,-1100.76,0.0002904,3]
[368526863,1751195484480,-1042.29,0.0002904,3]
[368526864,1751195484490,-1725.87,0.0002904,3]
[368526865,1751195484500,-1687.85,0.0002904,3]
[368526866,1751195484510,-2774.34,0.0002904,3]
[368526867,1751195484519,-490.0,0.0002904,3]
[368526868,1751195484529,-2051.55915186,0.00029041,4]
[368526869,1751195484539,-164938.7663684,0.00029041,4]
[368526870,1751195484548,-154.39998067,0.00029041,2]
[368526871,1751195484558,-490.0,0.00029041,3]
[368526872,1751195484567,-490.0,0.00029041,3]
[368526873,1751195484577,-490.0,0.00029041,3]
[368526874,1751195484588,-490.0,0.00029041,3]
[368526875,1751195484597,-572.57,0.00029041,3]
[368526876,1751195484606,-490.0,0.00029041,3]
[368526877,1751195484617,-828.1,0.00029041,3]
[368526878,1751195484628,-217.45380841,0.00029041,3]
[368526879,1751195484637,-490.0,0.00029041,3]
[368526880,1751195484647,-490.0,0.00029041,3]
[368526881,1751195484657,-490.0,0.00029041,3]
[368526882,1751195484667,-490.0,0.00029041,3]
[368526883,1751195484678,-490.0,0.00029041,3]
[368526884,1751195484687,-490.0,0.00029041,3]
[368526885,1751195484697,-490.0,0.00029041,3]
[368526886,1751195484707,-490.0,0.00029041,3]
[368526887,1751195484717,-490.0,0.00029041,3]
[368526888,1751195484726,-490.0,0.00029041,3]
[368526889,1751195484736,-490.0,0.00029041,3]
[368526890,1751195484745,-490.0,0.00029041,3]
[368526891,1751195484755,-490.0,0.00029041,3]
[368526892,1751195484765,-490.0,0.00029041,3]
[368526893,1751195484774,-736.21,0.00029041,3]
[368526894,1751195484784,-490.0,0.00029041,3]
[368526895,1751195484794,-490.0,0.00029041,3]
[368526896,1751195484803,-490.0,0.00029041,3]
[368526897,1751195484812,-490.0,0.00029041,3]
[368526898,1751195484821,-490.0,0.00029041,3]
[368526899,1751195484830,-498.5,0.00029041,3]
[368526900,1751195484839,-490.0,0.00029041,3]
[368526901,1751195484849,-490.0,0.00029041,3]
[368526902,1751195484859,-490.0,0.00029041,3]
[368526903,1751195484869,-490.0,0.00029041,3]
[368526904,1751195484879,-490.0,0.00029041,3]
[368526905,1751195484889,-490.0,0.00029041,3]
[368526906,1751195484899,-490.0,0.00029041,3]
[368526907,1751195484910,-490.0,0.00029041,3]
[368526908,1751195484920,-490.0,0.00029041,3]
[368526909,1751195484928,-490.0,0.00029041,3]
[368526910,1751195484939,-490.0,0.00029041,3]
[368526911,1751195484950,-490.0,0.00029041,3]
[368526912,1751195484959,-490.0,0.00029041,3]
[368526913,1751195484969,-490.0,0.00029041,3]
[368526914,1751195484979,-490.0,0.00029041,3]
[368526915,1751195484988,-490.0,0.00029041,3]
[368526916,1751195484998,-490.0,0.00029041,3]
[368526917,1751195485007,-354.36527062,0.00029041,3]
[368526918,1751195485016,-490.0,0.00029041,3]
[368526919,1751195485026,-490.0,0.00029041,3]
[368526920,1751195485036,-490.0,0.00029041,3]
[368526921,1751195485046,-1266.21,0.00029041,3]
[368526922,1751195485055,-490.0,0.00029041,3]
[368526923,1751195485065,-490.0,0.00029041,3]
[368526924,1751195485074,-494.48132131,0.00029041,3]
[368526925,1751195485083,-690.25,0.00029041,3]
[368526926,1751195485092,-490.0,0.00029041,3]
[368526927,1751195485102,-598.13,0.00029041,3]
[368526928,1751195485111,-1113.04,0.00029041,3]
[368526929,1751195485121,-490.0,0.00029041,3]
[368526930,1751195485131,-523.97,0.00029041,3]
[368526931,1751195485140,-679.56,0.00029041,3]
[368526932,1751195485149,-490.0,0.00029041,3]
[368526933,1751195485159,-490.0,0.00029041,3]
[368526934,1751195485169,-490.0,0.00029041,3]
[368526935,1751195485178,-490.0,0.00029041,3]
[368526936,1751195485187,-594.99,0.00029041,3]
[368526937,1751195485196,-490.0,0.00029041,3]
[368526938,1751195485206,-490.0,0.00029041,3]
[368526939,1751195485215,-305.68798025,0.00029041,3]
[368526940,1751195485224,-490.0,0.00029041,3]
[368526941,1751195485234,-423.06130243,0.00029041,3]
[368526942,1751195485243,-1446.76,0.00029041,3]
[368526943,1751195485251,-490.0,0.00029041,3]
[368526944,1751195485260,-490.0,0.00029041,3]
[368526945,1751195485270,-490.0,0.00029041,3]
[368526946,1751195485278,-490.0,0.00029041,3]
[368526947,1751195485288,-490.0,0.00029041,3]
[368526948,1751195485298,-490.0,0.00029041,3]
[368526949,1751195485307,-1256.21,0.00029041,3]
[368526950,1751195485316,-663.42,0.00029041,3]
[368526951,1751195485328,-490.0,0.00029041,3]
[368526952,1751195485337,-490.0,0.00029041,3]
[368526953,1751195485347,-1418.54,0.00029041,3]
[368526954,1751195485356,-490.0,0.00029041,3]
[368526955,1751195485366,-490.0,0.00029041,3]
[368526956,1751195485375,-490.0,0.00029041,3]
[368526957,1751195485385,-490.0,0.00029041,3]
[368526958,1751195485394,-490.0,0.00029041,3]
[368526959,1751195485404,-490.0,0.00029041,3]
[368526960,1751195485414,-490.0,0.00029041,3]
[368526961,1751195485423,-496.37,0.00029041,3]
[368526962,1751195485432,-1013.41,0.00029041,3]
[368526963,1751195485441,-490.0,0.00029041,3]
[368526964,1751195485451,-1113.41,0.00029041,3]
[368526965,1751195485460,-312.10961454,0.00029041,3]
[368526966,1751195485470,-490.0,0.00029041,3]
[368526967,1751195485479,-643.24,0.00029041,3]
[368526968,1751195485489,-490.0,0.00029041,3]
[368526969,1751195485498,-490.0,0.00029041,3]
[368526970,1751195485507,-490.0,0.00029041,3]
[368526971,1751195485517,-490.0,0.00029041,3]
[368526972,1751195485527,-827.85,0.00029041,3]
[368526973,1751195485536,-490.0,0.00029041,3]
[368526974,1751195485545,-1223.98,0.00029041,3]
[368526975,1751195485555,-560.05,0.00029041,3]
[368526976,1751195485564,-815.38,0.00029041,3]
[368526977,1751195485574,-745.76,0.00029041,3]
[368526978,1751195485584,-566.05,0.00029041,3]
[368526979,1751195485593,-490.0,0.00029041,3]
[368526980,1751195485602,-568.47,0.00029041,3]
[368526981,1751195485611,-490.0,0.00029041,3]
[368526982,1751195485621,-1242.08,0.00029041,3]
[368526983,1751195485630,-490.0,0.00029041,3]
[368526984,1751195485639,-957.14,0.00029041,3]
[368526985,1751195485648,-490.0,0.00029041,3]
[368526986,1751195485658,-490.0,0.00029041,3]
[368526987,1751195485667,-490.0,0.00029041,3]
[368526988,1751195485677,-490.0,0.00029041,3]
[368526989,1751195485686,-554.77408629,0.00029041,3]
[368526990,1751195485695,-532.08,0.00029041,3]
[368526991,1751195485704,-490.0,0.00029041,3]
[368526992,1751195485713,-490.0,0.00029041,3]
[368526993,1751195485723,-1422.6,0.00029041,3]
[368526994,1751195485732,-490.0,0.00029041,3]
[368526995,1751195485741,-490.0,0.00029041,3]
[368526996,1751195485751,-490.0,0.00029041,3]
[368526997,1751195485761,-490.0,0.00029041,3]
[368526998,1751195485771,-756.27,0.00029041,3]
[368526999,1751195485780,-1401.37,0.00029041,3]
[368527000,1751195485790,-915.4,0.00029041,3]
[368527001,1751195485799,-490.0,0.00029041,3]
[368527002,1751195485807,-490.0,0.00029041,3]
[368527003,1751195485817,-1294.27,0.00029041,3]
[368527004,1751195485826,-759.55,0.00029041,3]
[368527005,1751195485836,-598.76,0.00029041,3]
[368527006,1751195485847,-1087.93,0.00029041,3]
[368527007,1751195485859,-490.0,0.00029041,3]
[368527008,1751195485867,-490.0,0.00029041,3]
[368527009,1751195485878,-490.0,0.00029041,3]
[368527010,1751195485888,-490.0,0.00029041,3]
[368527011,1751195485897,-490.0,0.00029041,3]
[368527012,1751195485905,-490.0,0.00029041,3]
[368527013,1751195485914,-525.72,0.00029041,3]
[368527014,1751195485925,-1267.05,0.00029041,3]
[368527015,1751195485936,-490.0,0.00029041,3]
[368527016,1751195485945,-490.0,0.00029041,3]
[368527017,1751195485954,-1134.9,0.00029041,3]
[368527018,1751195485965,-1224.95,0.00029041,3]
[368527019,1751195485974,-493.99,0.00029041,3]
[368527020,1751195485985,-490.0,0.00029041,3]
[368527021,1751195485996,-490.0,0.00029041,3]
[368527022,1751195486006,-490.0,0.00029041,3]
[368527023,1751195486016,-490.0,0.00029041,3]
[368527024,1751195486025,-571.79,0.00029041,3]
[368527025,1751195486035,-735.44,0.00029041,3]
[368527026,1751195486046,-549.79,0.00029041,3]
[368527027,1751195486134,-490.0,0.00029041,3]